bitfinex/quotes_SOLUSD_20241115
["timestamp","ask_amount","ask_price","bid_price","bid_amount"]
[1731659816129,6.5662,210.35,210.26,20.0]
[1731659816344,6.5662,210.35,210.28,20.0]
[1731659816513,6.5662,210.35,210.29,23.776884]
[1731659816910,6.5662,210.35,210.27,23.776884]
[1731659817115,6.5662,210.35,210.29,23.776884]
[1731659817543,16.05,210.36,210.31,23.776884]
[1731659818836,16.05,210.36,210.32,20.0]
[1731659819015,16.05,210.36,210.33,23.776884]
[1731659819224,0.4747029,210.39,210.34,20.0]
[1731659821936,0.4747029,210.39,210.35,23.776884]
[1731659822620,0.4747029,210.39,210.37,23.776884]
[1731659823143,0.4747029,210.39,210.38,43.776884]
[1731659824219,15.285,210.49,210.43,23.776884]
[1731659824435,15.285,210.49,210.44,20.0]
[1731659825529,15.1634,210.54,210.45,23.776884]
[1731659825718,15.1634,210.54,210.49,23.776884]
[1731659826527,15.1634,210.54,210.5,20.0]
[1731659827536,15.1634,210.54,210.42,0.1]
[1731659827823,15.1634,210.54,210.44,23.776884]
[1731659828145,15.1634,210.54,210.47,20.0]
[1731659828521,15.1634,210.54,210.49,20.0]
[1731659829031,15.1634,210.54,210.47,20.0]
[1731659829427,15.1634,210.54,210.49,20.0]
[1731659830246,15.1634,210.54,210.48,23.776884]
[1731659830433,15.1634,210.54,210.49,20.0]
[1731659830840,15.1634,210.54,210.47,20.0]
[1731659831027,15.1634,210.54,210.49,20.0]
[1731659832227,15.1634,210.54,210.41,4.61988583]
[1731659832430,15.1634,210.54,210.4,23.776884]
[1731659833641,15.1634,210.54,210.42,23.776884]
[1731659834148,15.1634,210.54,210.46,23.776884]
[1731659834448,15.1634,210.54,210.47,20.0]
[1731659835030,15.1634,210.54,210.49,20.0]
[1731659840949,15.6469,210.59,210.49,20.0]
[1731659841953,15.6469,210.59,210.51,20.0]
[1731659842834,15.6469,210.59,210.49,20.0]
[1731659843135,15.6469,210.59,210.51,20.0]
[1731659843754,15.6469,210.59,210.47,20.0]
[1731659843941,15.6469,210.59,210.49,20.0]
[1731659844453,15.6469,210.59,210.51,20.0]
[1731659845137,15.6469,210.59,210.48,23.776884]
[1731659845749,15.6469,210.59,210.51,20.0]
[1731659846640,15.6469,210.59,210.49,20.0]
[1731659846839,0.06075,210.57,210.35,6.49990445]
[1731659847147,15.2694,210.56,210.34,21.7747]
[1731659847454,6.1413,210.55,210.35,0.1]
[1731659847625,15.1694,210.56,210.54,11.73198849]
[1731659847832,15.1694,210.56,210.5,11.73198849]
[1731659848051,26.90138849,210.56,210.5,11.73198849]
[1731659848352,11.73198849,210.54,210.47,11.73198849]
[1731659848559,6.6032,210.55,210.5,11.73198849]
[1731659848745,11.3526,210.55,210.5,11.73198849]
[1731659849051,0.06075,210.59,210.53,11.73198849]
[1731659849052,4.7485,210.59,210.53,11.73198849]
[1731659849243,0.1,210.58,210.53,11.73198849]
[1731659849448,0.1,210.58,210.52,11.73198849]
[1731659849650,16.48048849,210.59,210.53,11.73198849]
[1731659849835,4.7485,210.59,210.53,11.73198849]
[1731659850035,0.4747029,210.6,210.58,11.73198849]
[1731659850540,0.4747029,210.6,210.56,11.73198849]
[1731659850751,0.4747029,210.6,210.58,11.73198849]
[1731659850930,0.4747029,210.6,210.57,11.73198849]
[1731659851250,0.4747029,210.6,210.59,11.73198849]
[1731659851629,0.4747029,210.6,210.58,11.73198849]
[1731659852226,0.4747029,210.6,210.56,11.73198849]
[1731659852458,0.4747029,210.6,210.57,11.73198849]
[1731659852660,0.4747029,210.6,210.58,11.73198849]
[1731659853934,0.4747029,210.6,210.57,11.73198849]
[1731659854139,0.4747029,210.6,210.58,11.73198849]
[1731659854434,0.4747029,210.6,210.59,11.73198849]
[1731659855155,0.4747029,210.6,210.59,67.24086098]
[1731659855341,4.745,210.75,210.6,43.776884]
[1731659855656,4.745,210.75,210.69,11.73198849]
[1731659856231,16.2776,210.76,210.71,11.73198849]
[1731659856732,16.2776,210.76,210.7,11.73198849]
[1731659857539,11.73198849,210.74,210.67,11.73198849]
[1731659857744,11.73198849,210.73,210.66,11.73198849]
[1731659858255,11.73198849,210.72,210.65,11.73198849]
[1731659858954,11.73198849,210.7,210.63,11.73198849]
[1731659859254,11.73198849,210.69,210.62,11.73198849]
[1731659859649,11.73198849,210.67,210.6,11.73198849]
[1731659859959,27.99938849,210.66,210.6,11.73198849]
[1731659860337,27.99938849,210.66,210.59,11.73198849]
[1731659860754,16.47918849,210.65,210.58,11.73198849]
[1731659861471,11.73198849,210.64,210.58,11.73198849]
[1731659861766,11.73198849,210.61,210.54,11.73198849]
[1731659862383,11.73198849,210.59,210.52,11.73198849]
[1731659862554,11.73198849,210.59,210.51,11.73198849]
[1731659862752,16.48078849,210.58,210.51,11.73198849]
[1731659863056,4.7474,210.64,210.46,0.12549]
[1731659863252,11.73198849,210.62,210.55,11.73198849]
[1731659863457,11.73198849,210.56,210.43,15.6434]
[1731659863645,21.6231,210.6,210.43,15.6434]
[1731659863646,0.1,210.59,210.43,15.6434]
[1731659863830,11.73198849,210.59,210.52,11.73198849]
[1731659864035,11.73198849,210.58,210.51,11.73198849]
[1731659864749,16.48078849,210.58,210.51,11.73198849]
[1731659865139,0.06075,210.7,210.57,11.73198849]
[1731659865337,11.83198849,210.67,210.6,11.73198849]
[1731659865739,11.73198849,210.66,210.59,11.73198849]
[1731659866357,11.73198849,210.68,210.61,11.73198849]
[1731659866860,11.73198849,210.67,210.6,11.73198849]
[1731659867758,11.73198849,210.66,210.59,11.73198849]
[1731659868660,11.73198849,210.67,210.59,11.73198849]
[1731659869364,11.73198849,210.65,210.58,11.73198849]
[1731659869963,11.73198849,210.65,210.57,11.73198849]
[1731659870564,11.73198849,210.68,210.61,11.73198849]
[1731659870740,4.7466,210.68,210.52,15.20749]
[1731659871054,4.7466,210.68,210.54,20.0]
[1731659871638,4.7466,210.68,210.53,20.0]
[1731659871838,4.7466,210.68,210.55,20.0]
[1731659874940,0.06075,210.69,210.55,20.0]
[1731659880567,7.45714653,210.71,210.55,20.0]
[1731659880881,16.0942,210.73,210.59,20.0]
[1731659881052,16.0942,210.73,210.61,20.0]
[1731659881761,16.0942,210.73,210.63,20.0]
[1731659882350,16.0942,210.73,210.64,23.776884]
[1731659882553,16.0942,210.73,210.65,20.0]
[1731659883059,16.0942,210.73,210.6,4.67919377]
[1731659883271,16.0942,210.73,210.63,23.776884]
[1731659883478,16.0942,210.73,210.64,20.0]
[1731659887253,16.0942,210.73,210.66,20.0]
[1731659888378,15.0829,210.78,210.66,20.0]
[1731659888573,15.0829,210.78,210.69,23.776884]
[1731659889168,15.0829,210.78,210.63,20.0]
[1731659889474,15.0829,210.78,210.65,20.0]
[1731659889676,15.0829,210.78,210.67,20.0]
[1731659889886,15.0829,210.78,210.68,23.776884]
[1731659894575,15.0829,210.78,210.7,23.776884]
[1731659894785,0.4747029,210.81,210.73,20.0]
[1731659894967,0.4747029,210.81,210.74,23.776884]
[1731659895679,0.4747029,210.81,210.76,23.776884]
[1731659896494,4.7401,210.97,210.79,20.0]
[1731659896671,4.7401,210.97,210.82,23.776884]
[1731659896880,4.8401,210.97,210.84,23.776884]
[1731659897092,4.90085,210.97,210.83,20.0]
[1731659897299,0.1,210.96,210.78,20.0]
[1731659897475,0.1,210.96,210.8,43.776884]
[1731659897797,4.7403,210.96,210.8,43.776884]
[1731659899079,19.829,210.98,210.8,43.776884]
[1731659899780,19.929,210.98,210.8,43.776884]
[1731659899979,0.1,210.97,210.8,43.776884]
[1731659900191,4.7402,210.96,210.8,43.776884]
[1731659901085,4.8402,210.96,210.8,43.776884]
[1731659901288,4.7402,210.96,210.8,43.776884]
[1731659901795,0.06075,210.97,210.8,43.776884]
[1731659902298,15.0891,210.98,210.8,43.776884]
[1731659902797,19.8289,210.98,210.8,43.776884]
[1731659905498,19.88965,210.98,210.8,43.776884]
[1731659905683,20.0,210.93,210.73,22.89211556]
[1731659905882,0.06075,210.92,210.73,21.2223985]
[1731659906200,0.06075,210.9,210.73,16.5796]
[1731659906974,30.0,210.84,210.74,0.12549]
[1731659907382,30.0,210.84,210.74,20.12549]
[1731659907584,16.4495,210.83,210.68,20.0]
[1731659908101,30.0,210.82,210.67,21.28968036]
[1731659908310,30.0,210.82,210.68,6.31784367]
[1731659908608,30.0,210.82,210.68,12.63035923]
[1731659908792,30.0,210.82,210.69,0.12549]
[1731659910111,34.7434,210.82,210.69,0.12549]
[1731659910392,30.0,210.82,210.69,0.12549]
[1731659911396,4.7434,210.82,210.69,0.12549]
[1731659911987,4.7434,210.82,210.68,20.0]
[1731659912195,4.7434,210.82,210.68,0.12549]
[1731659912379,24.80415,210.82,210.6,6.0132]
[1731659912583,0.1,210.81,210.6,10.59026171]
[1731659913000,0.1,210.81,210.61,0.12549]
[1731659913208,0.1,210.81,210.6,4.57706171]
[1731659913209,22.673,210.79,210.6,4.57706171]
[1731659913508,24.80495,210.78,210.57,15.4977]
[1731659914479,27.4171,210.79,210.58,12.63035923]
[1731659915201,27.5171,210.79,210.59,43.902374]
[1731659915404,0.06075,210.77,210.58,20.0]
[1731659915893,15.2573,210.76,210.57,20.19485683]
[1731659916201,15.2573,210.76,210.58,0.12549]
[1731659917287,15.2573,210.76,210.59,20.0]
[1731659917523,15.2573,210.76,210.61,20.0]
[1731659917685,15.2573,210.76,210.62,23.776884]
[1731659917888,15.2573,210.76,210.65,20.0]
[1731659919191,20.0021,210.76,210.59,20.0]
[1731659919394,20.0021,210.76,210.6,23.776884]
[1731659919702,20.0021,210.76,210.62,23.776884]
[1731659919904,20.0021,210.76,210.58,0.12549]
[1731659920097,20.0021,210.76,210.58,23.902374]
[1731659920413,20.0021,210.76,210.58,0.12549]
[1731659920590,20.0021,210.76,210.55,6.5668]
[1731659920998,6.0106,210.74,210.55,6.5668]
[1731659921298,6.0106,210.74,210.56,0.12549]
[1731659921707,4.7454,210.73,210.56,0.12549]
[1731659922429,4.7454,210.73,210.56,23.902374]
[1731659922610,4.7454,210.73,210.58,23.776884]
[1731659922813,4.7454,210.73,210.59,20.0]
[1731659923207,6.0106,210.74,210.6,23.776884]
[1731659923393,6.0106,210.74,210.63,20.0]
[1731659925009,6.0106,210.74,210.65,20.0]
[1731659925689,6.0106,210.74,210.63,20.0]
[1731659925898,6.0106,210.74,210.64,23.776884]
[1731659926215,6.0106,210.74,210.65,20.0]
[1731659926703,6.0106,210.74,210.56,20.12549]
[1731659926906,6.0106,210.74,210.57,23.776884]
[1731659927215,6.0106,210.74,210.61,23.776884]
[1731659927422,6.0106,210.74,210.62,20.0]
[1731659927714,6.0106,210.74,210.64,20.0]
[1731659928491,6.0106,210.74,210.65,23.776884]
[1731659929714,6.0106,210.74,210.59,0.86]
[1731659929911,15.8257,210.81,210.64,23.776884]
[1731659930091,15.8257,210.81,210.68,23.776884]
[1731659930290,15.8257,210.81,210.69,20.0]
[1731659930500,15.8257,210.81,210.65,0.86]
[1731659930501,15.98645,210.81,210.65,0.86]
[1731659930690,15.98645,210.81,210.64,23.776884]
[1731659930919,15.98645,210.81,210.65,20.0]
[1731659931219,15.98645,210.81,210.64,23.776884]
[1731659931220,15.7623,210.78,210.64,23.776884]
[1731659931428,22.2633,210.77,210.58,4.67602942]
[1731659931595,22.2633,210.77,210.61,0.12549]
[1731659931794,4.7447,210.76,210.62,20.0]
[1731659932192,24.7447,210.76,210.61,23.776884]
[1731659932396,24.8447,210.76,210.62,0.12549]
[1731659932595,15.8955,210.75,210.62,0.12549]
[1731659932825,4.7451,210.74,210.55,21.658]
[1731659933296,4.7451,210.74,210.56,0.12549]
[1731659933611,4.7451,210.74,210.56,20.12549]
[1731659934030,4.7451,210.74,210.57,23.776884]
[1731659934230,4.7451,210.74,210.59,23.776884]
[1731659934609,4.7451,210.74,210.6,20.0]
[1731659935833,4.7451,210.74,210.62,20.0]
[1731659940736,15.8955,210.75,210.66,20.0]
[1731659943735,15.8955,210.75,210.68,20.0]
[1731659943915,15.8955,210.75,210.71,23.776884]
[1731659944108,15.8955,210.75,210.72,20.0]
[1731659944315,15.9412,210.81,210.72,20.0]
[1731659944516,15.9412,210.81,210.74,20.0]
[1731659950517,15.69039294,210.81,210.74,20.0]
[1731659951918,15.69039294,210.81,210.69,4.57993586]
[1731659952120,15.69039294,210.81,210.73,20.0]
[1731659952322,15.69039294,210.81,210.72,23.776884]
[1731659953445,15.69039294,210.81,210.68,4.68308113]
[1731659953635,15.69039294,210.81,210.65,20.0]
[1731659954148,15.69039294,210.81,210.7,23.776884]
[1731659954327,15.69039294,210.81,210.71,20.0]
[1731659960464,15.69039294,210.81,210.73,20.0]
[1731659962053,15.69039294,210.81,210.7,4.53728331]
[1731659962259,15.69039294,210.81,210.72,20.0]
[1731659963571,15.69039294,210.81,210.75,23.776884]
[1731659963762,15.69039294,210.81,210.76,20.0]
[1731659965065,15.69039294,210.81,210.75,23.776884]
[1731659965277,15.69039294,210.81,210.76,20.0]
[1731659965770,15.1012,210.87,210.76,20.0]
[1731659967505,19.8436,210.87,210.75,23.776884]
[1731659967769,19.8436,210.87,210.68,16.4338]
[1731659967770,19.8436,210.87,210.7,23.776884]
[1731659967977,19.8436,210.87,210.73,20.0]
[1731659968159,19.8436,210.87,210.7,23.776884]
[1731659968357,15.2086,210.86,210.7,23.776884]
[1731659968654,6.5835,210.85,210.62,20.31310431]
[1731659968864,4.7429,210.84,210.62,20.31310431]
[1731659969251,23.0972,210.83,210.62,20.21310431]
[1731659969459,23.0972,210.83,210.63,0.12549]
[1731659970260,23.0972,210.83,210.65,0.1]
[1731659970581,23.0972,210.83,210.7,20.0]
[1731659970763,23.0972,210.83,210.73,23.776884]
[1731659970953,23.0972,210.83,210.74,20.0]
[1731659973570,4.7422,210.88,210.74,20.0]
[1731659973777,4.7422,210.88,210.75,23.776884]
[1731659976663,4.7422,210.88,210.76,20.0]
[1731659977180,15.3778,210.89,210.76,20.0]
[1731659977565,20.1196,210.89,210.78,20.0]
[1731659977786,15.3778,210.89,210.77,23.776884]
[1731659978087,15.3778,210.89,210.81,23.776884]
[1731659978759,7.38836192,210.94,210.82,20.0]
[1731659978963,16.3393,210.95,210.82,20.0]
[1731659979195,21.0798,210.95,210.78,20.0]
[1731659979489,21.0798,210.95,210.8,20.0]
[1731659980263,21.14055,210.95,210.8,20.0]
[1731659980585,16.5989,210.93,210.76,23.776884]
[1731659981087,22.8099,210.91,210.72,4.71900429]
[1731659981292,4.7415,210.9,210.73,0.12549]
[1731659983496,24.7415,210.9,210.73,0.12549]
[1731659983990,15.6951,210.87,210.69,4.58604619]
[1731659984290,15.6951,210.87,210.66,5.96283334]
[1731659984779,15.6951,210.87,210.67,0.12549]
[1731659985692,6.1049,210.85,210.67,23.776884]
[1731659986177,16.2816,210.84,210.66,4.74866607]
[1731659986487,16.2816,210.84,210.64,10.62009686]
[1731659986874,16.2816,210.82,210.64,10.62009686]
[1731659987268,16.2816,210.82,210.65,0.12549]
[1731659987961,16.2816,210.82,210.65,23.902374]
[1731659988664,16.2816,210.82,210.64,15.24379626]
[1731659988665,21.025,210.82,210.64,15.24379626]
[1731659988992,21.025,210.82,210.65,0.12549]
[1731659989894,21.025,210.82,210.65,23.902374]
[1731659990272,15.5875,210.81,210.65,23.902374]
[1731659990595,15.5875,210.79,210.65,23.902374]
[1731659991070,20.3316,210.79,210.65,23.902374]
[1731659993369,15.5875,210.79,210.65,23.902374]
[1731659994992,15.5875,210.79,210.66,20.0]
[1731659995613,15.5875,210.79,210.67,23.776884]
[1731659998116,15.5875,210.79,210.65,23.902374]
[1731659998292,15.5875,210.79,210.66,20.0]
[1731659998493,15.5875,210.79,210.67,23.776884]
[1731659999106,15.5875,210.79,210.65,23.902374]
[1731660000413,15.5875,210.79,210.64,15.24379626]
[1731660000414,20.3316,210.79,210.64,15.24379626]
[1731660000791,15.5875,210.79,210.65,0.12549]
[1731660001620,15.5875,210.79,210.65,23.902374]
[1731660004913,20.3316,210.79,210.64,16.06512778]
[1731660005693,20.3316,210.79,210.65,0.12549]
[1731660006602,20.3316,210.79,210.65,23.902374]
[1731660007914,20.3316,210.79,210.65,0.12549]
[1731660008500,20.3316,210.79,210.65,23.902374]
[1731660009307,26.7208,210.78,210.64,11.44142838]
[1731660009519,15.0914,210.73,210.64,10.62009686]
[1731660011320,21.3916,210.72,210.64,10.62009686]
[1731660011522,4.7458,210.71,210.64,10.62009686]
[1731660011701,15.1931,210.7,210.64,10.62009686]
[1731660013209,19.9392,210.7,210.64,10.62009686]
[1731660014128,16.1456,210.68,210.47,0.1]
[1731660014429,16.1456,210.68,210.48,0.8190461]
[1731660014608,16.1456,210.68,210.49,0.12549]
[1731660015209,20.8921,210.68,210.49,0.12549]
[1731660015429,20.8921,210.68,210.49,23.902374]
[1731660017126,16.5298,210.65,210.48,0.8190461]
[1731660017428,6.1177,210.64,210.48,0.8190461]
[1731660017612,15.084,210.63,210.47,4.58715009]
[1731660017813,15.084,210.63,210.45,4.48210431]
[1731660018017,6.3326,210.62,210.45,4.48210431]
[1731660018208,16.475,210.61,210.45,4.72905392]
[1731660018414,16.475,210.61,210.44,0.81897325]
[1731660018936,16.475,210.61,210.44,5.41952531]
[1731660019538,16.475,210.61,210.45,0.12549]
[1731660020010,16.475,210.61,210.45,23.902374]
[1731660020628,22.8076,210.6,210.45,23.902374]
[1731660021012,16.475,210.59,210.4,4.48210431]
[1731660021212,16.475,210.57,210.4,4.48210431]
[1731660021535,6.3326,210.56,210.4,4.48210431]
[1731660022225,15.3208,210.55,210.4,9.03288312]
[1731660022414,15.4917,210.53,210.34,4.48210431]
[1731660022615,6.0775,210.52,210.34,4.48210431]
[1731660022924,15.4917,210.51,210.35,0.12549]
[1731660023127,15.4917,210.51,210.3,5.96283334]
[1731660023832,15.4917,210.51,210.31,23.902374]
[1731660024511,20.2422,210.51,210.31,23.902374]
[1731660025039,16.4223,210.47,210.3,4.63310198]
[1731660025240,16.4223,210.47,210.3,0.12549]
[1731660025933,16.4223,210.47,210.3,15.88454805]
[1731660026110,16.4223,210.47,210.31,15.85905805]
[1731660026435,16.4223,210.47,210.32,23.776884]
[1731660026634,16.4223,210.47,210.32,28.25898831]
[1731660029437,16.4223,210.47,210.36,23.776884]
[1731660033423,16.4223,210.47,210.36,23.876884]
[1731660033625,16.4223,210.47,210.38,23.776884]
[1731660034026,6.397,210.48,210.4,23.776884]
[1731660035444,16.5378,210.52,210.42,23.776884]
[1731660035629,22.1303,210.58,210.44,23.776884]
[1731660035829,22.1303,210.58,210.46,23.876884]
[1731660036145,22.1303,210.58,210.48,23.776884]
[1731660040545,22.1303,210.58,210.48,29.4160044]
[1731660041951,22.1303,210.58,210.48,23.776884]
[1731660043424,22.1303,210.58,210.47,23.776884]
[1731660043741,22.1303,210.58,210.29,127.22012168]
[1731660043742,22.1303,210.58,210.4,4.58210431]
[1731660043936,22.1303,210.58,210.41,0.12549]
[1731660044249,22.1303,210.58,210.4,4.58210431]
[1731660045351,22.1303,210.58,210.41,23.902374]
[1731660046758,26.8791,210.58,210.41,23.776884]
[1731660047052,26.8791,210.58,210.4,23.776884]
[1731660047254,26.8791,210.58,210.41,0.12549]
[1731660047551,21.7116,210.56,210.39,10.18503625]
[1731660047756,21.7116,210.56,210.39,4.54720291]
[1731660048057,21.7116,210.56,210.38,0.12549]
[1731660049330,22.6755,210.57,210.38,0.12549]
[1731660049551,22.6755,210.55,210.38,0.12549]
[1731660050253,22.6755,210.55,210.38,23.902374]
[1731660052060,22.6755,210.55,210.38,35.27932774]
[1731660052257,22.6755,210.55,210.4,23.876884]
[1731660052756,22.6755,210.55,210.4,23.776884]
[1731660052962,22.6755,210.55,210.39,23.776884]
[1731660053463,22.6755,210.55,210.41,23.776884]
[1731660058260,22.6755,210.55,210.44,0.1]
[1731660058441,22.6755,210.55,210.44,5.73783334]
[1731660058643,22.6755,210.55,210.45,23.776884]
[1731660060450,22.6755,210.55,210.43,23.776884]
[1731660061758,22.6755,210.55,210.45,23.776884]
[1731660061955,22.6755,210.55,210.45,35.15383774]
[1731660062259,22.6755,210.55,210.47,23.776884]
[1731660064161,20.0,210.74,210.47,23.876884]
[1731660064346,4.7451,210.74,210.5,0.1]
[1731660064543,4.7451,210.74,210.51,23.776884]
[1731660064748,0.1,210.8,210.51,23.776884]
[1731660064749,7.40281907,210.88,210.6,0.2]
[1731660065044,4.7411,210.92,210.64,20.1]
[1731660065265,4.7411,210.92,210.66,0.1]
[1731660065560,12.10674602,210.92,210.68,23.776884]
[1731660065951,12.10674602,210.92,210.68,30.23567442]
[1731660066372,20.0,210.91,210.68,30.23567442]
[1731660066548,7.36564602,210.92,210.7,23.776884]
[1731660066861,0.06075,210.95,210.71,10.92108471]
[1731660067161,6.2998,210.93,210.72,23.776884]
[1731660067763,15.8395,210.94,210.72,23.776884]
[1731660067764,6.2998,210.91,210.72,23.776884]
[1731660069062,46.384284,210.89,210.65,4.6471858]
[1731660069356,20.0,210.88,210.65,23.776884]
[1731660069868,46.384284,210.89,210.65,23.776884]
[1731660070157,4.742,210.88,210.65,29.88178553]
[1731660070343,22.6074,210.89,210.66,6.10490153]
[1731660070550,22.6074,210.89,210.67,23.876884]
[1731660070766,22.6074,210.89,210.69,23.776884]
[1731660071340,22.6074,210.89,210.69,29.88178553]
[1731660072471,22.6074,210.89,210.71,23.776884]
[1731660072637,22.6074,210.89,210.71,29.88178553]
[1731660074364,22.6074,210.89,210.73,23.776884]
[1731660078854,22.6074,210.89,210.73,30.26886004]
[1731660079046,22.6074,210.89,210.74,6.49197604]
[1731660079653,22.6074,210.89,210.75,23.776884]
[1731660080985,22.6074,210.89,210.74,6.49197604]
[1731660081265,22.6074,210.89,210.75,23.776884]
[1731660081572,22.6074,210.89,210.74,6.49197604]
[1731660082366,27.3492,210.89,210.74,6.49197604]
[1731660082566,22.6074,210.89,210.74,6.49197604]
[1731660082865,22.6074,210.89,210.75,23.776884]
[1731660086773,22.6074,210.89,210.76,23.776884]
[1731660087076,22.6074,210.89,210.76,30.26886004]
[1731660087874,6.2854,210.89,210.76,36.37376157]
[1731660088058,21.878,210.94,210.78,23.776884]
[1731660089376,21.878,210.94,210.78,30.26886004]
[1731660092061,21.878,210.94,210.8,23.776884]
[1731660092559,21.878,210.94,210.8,29.88178553]
[1731660092988,21.878,210.94,210.8,36.37376157]
[1731660093576,21.878,210.94,210.81,6.10490153]
[1731660093785,21.878,210.94,210.82,23.776884]
[1731660093967,21.878,210.94,210.82,29.88178553]
[1731660096069,21.878,210.94,210.82,36.37376157]
[1731660096275,21.878,210.94,210.84,23.776884]
[1731660098183,21.878,210.94,210.82,6.10490153]
[1731660098492,21.878,210.94,210.76,12.59687757]
[1731660098959,21.878,210.94,210.76,6.49197604]
[1731660099162,21.878,210.94,210.78,0.12549]
[1731660100790,21.878,210.94,210.79,23.776884]
[1731660102167,21.878,210.94,210.78,6.49197604]
[1731660102361,21.878,210.94,210.79,23.902374]
[1731660102607,21.878,210.94,210.79,30.39435004]
[1731660102789,51.74387133,210.8,210.72,73.23312127]
[1731660102986,7.32695689,210.8,210.75,5.60539597]
[1731660103681,7.32695689,210.79,210.75,5.60539597]
[1731660103878,44.41691444,210.87,210.75,5.60539597]
[1731660104081,59.22255259,210.89,210.75,5.60539597]
[1731660104385,74.02819074,210.92,210.73,26.48539597]
[1731660105094,28.517784,210.93,210.73,5.60539597]
[1731660105483,28.517784,210.93,210.74,0.12549]
[1731660105995,28.517784,210.93,210.72,99.03783132]
[1731660105996,6.3655,210.9,210.72,99.03783132]
[1731660106293,23.776884,210.89,210.72,93.01472021]
[1731660106495,23.776884,210.89,210.73,0.12549]
[1731660106882,15.1034,210.88,210.73,0.12549]
[1731660107086,23.776884,210.87,210.72,77.75642021]
[1731660107593,23.776884,210.87,210.73,0.12549]
[1731660109178,15.1034,210.88,210.73,0.12549]
[1731660109697,23.776884,210.87,210.73,0.12549]
[1731660110877,28.519184,210.87,210.73,0.12549]
[1731660111577,23.776884,210.85,210.67,15.0067]
[1731660111797,23.776884,210.83,210.67,15.0067]
[1731660112004,23.776884,210.83,210.61,0.81820301]
[1731660112005,23.776884,210.83,210.62,15.5676]
[1731660112295,16.4656,210.8,210.62,15.5676]
[1731660112473,23.776884,210.79,210.62,15.5676]
[1731660112993,23.776884,210.79,210.54,5.39698831]
[1731660112994,20.16075,210.76,210.57,72.26167149]
[1731660113200,23.776884,210.66,210.55,4.68925564]
[1731660113373,23.776884,210.66,210.44,101.98348152]
[1731660113374,43.776884,210.66,210.44,101.98348152]
[1731660113980,43.776884,210.66,210.45,0.12549]
[1731660114389,23.776884,210.63,210.44,0.81714143]
[1731660114785,23.776884,210.63,210.45,0.12549]
[1731660115103,23.776884,210.63,210.44,0.81714143]
[1731660115295,28.524684,210.63,210.44,0.81714143]
[1731660115494,23.776884,210.63,210.44,0.81714143]
[1731660116099,23.776884,210.63,210.45,0.12549]
[1731660116486,16.4484,210.64,210.45,0.12549]
[1731660116487,16.4484,210.64,210.45,23.902374]
[1731660118499,16.4484,210.64,210.45,24.002374]
[1731660121376,16.4484,210.64,210.45,23.902374]
[1731660122084,16.4484,210.64,210.47,23.776884]
[1731660123213,16.4484,210.64,210.45,38.232374]
[1731660123502,16.4484,210.64,210.47,23.776884]
[1731660124095,16.4484,210.64,210.47,38.106884]
[1731660124287,6.3483,210.67,210.47,42.34972359]
[1731660124688,6.3483,210.67,210.47,27.91972359]
[1731660125977,6.3483,210.67,210.47,42.14972359]
[1731660126180,6.3483,210.67,210.47,42.24972359]
[1731660128880,6.3483,210.67,210.47,27.91972359]
[1731660129194,23.776884,210.66,210.44,0.81714143]
[1731660130196,15.614,210.63,210.44,0.81714143]
[1731660130395,15.614,210.63,210.42,16.14836457]
[1731660130396,29.873584,210.62,210.42,4.63592649]
[1731660130699,29.873584,210.62,210.35,6.2543]
[1731660130700,23.776884,210.58,210.35,10.39713959]
[1731660131012,23.776884,210.58,210.35,24.62713959]
[1731660131424,23.776884,210.58,210.35,17.75750888]
[1731660131912,45.702884,210.56,210.35,11.50320888]